Cogmind - Beta 13 @@@ ROGUE MODE // 2024.06.08 @ 16:45:38 Player: f3-rnm Result: Self-destructed Performance ------------- Evolutions (4) 2000 Regions Visited (15) 3000 Robots Destroyed (120) 600 Value Destroyed (7144) 7144 Prototype IDs (27) 540 Alien Tech Used (0) 0 Bonus (4715) 4715 TOTAL SCORE: 17999 Bonus ------- High Alert Combat Kills 1091 Follower Combat Kills 828 Entered Garrisons 800 Used RIF Installer 2000 Aligned with FarCom 300 Friendly Fire -304 Cogmind --------- Core Integrity 119/850 Matter 231/300 Energy 310/310 System Corruption 21% Temperature Cool (0) Movement Walking (120) Location -6/Lower Caves Parts ------- > --- POWER (1) -------- Fission Core > --- PROPULSION (4) --- Flexi-carbon Leg Flexi-carbon Leg Flexi-carbon Leg > --- UTILITY (8) ------ Improved Heat Sink Improved Cooling System High-capacity Storage Unit Target Analyzer > --- WEAPON (2) ------- Lightning Gun > --- INVENTORY (20) --- Improved Deuterium Engine Carbon-fiber Leg Carbon-fiber Leg Flexi-carbon Leg Flexi-carbon Leg Improved Heat Sink Huge Storage Unit Compact Matter Pod (0) Seismic Detector Improved Shield Generator Force Field Lightning Gun Thermic Laser Proton Cannon Flak Cannon Remote Datajack Peak State ------------ > --- POWER ------------ (None) > --- PROPULSION ------- Flying Fortress v7 > --- UTILITY ---------- Improved Heat Sink Improved Heat Sink Huge Storage Unit Core Analyzer Core Analyzer Reaction Control System > --- WEAPON ----------- Improved Remote Datajack Heavy Flail > --- INVENTORY -------- Light Treads Aluminum Leg Carbon-fiber Leg Flexi-carbon Leg High-capacity Storage Unit Superbattery Large Matter Pod High-capacity Matter Pod Structural Scanner Improved Weapon Cycler Improved Focal Shield Relay Coupler [NC] Relay Coupler [NC] Relay Coupler [Swarmer] Relay Coupler [Grunt] Relay Coupler [Specialist] Relay Coupler [Hunter] Relay Coupler [Heavy] Long-range Tractor Beam Gatling Laser Gauss Rifle Flak Gun Heavy Machine Gun Field Lobotomy Kit [Rating: 68] Favorites ----------- Power Ion Engine Engine Ion Engine Power Core Neutrino Core Propulsion Light Treads Treads Light Treads Leg Flexi-carbon Leg Wheel Wheel Hover Unit Gravmag System Flight Unit Flying Fortress v7 Utility Huge Storage Unit Device Improved Heat Sink Storage Huge Storage Unit Processor Target Analyzer Hackware Relay Coupler [NC] Protection Layered Heavy Armor Plating Weapon Flak Gun Energy Gun Gatling Laser Energy Cannon Heavy Phase Cannon Ballistic Gun Flak Gun Ballistic Cannon Light Cannon Launcher Rocket Launcher Special Weapon Improved Remote Datajack Impact Weapon Heavy Flail Special Melee Weapon Datajack Build | -11 -10 -10 -10 -9 -8 -8 -8 -8 -7 -7 -7 -7 -6 -6 -6 ------- Run | Yrd Mat Min Exi Min Mat Gar Mat Gar Fac Gar Fac Gar Fac Low Low Slots Evolved 8 | . . . . . 4 . . . 2 . . . 2 . . Power . | . . . . . . . . . . . . . . . . Propulsion 2 | . . . . . 2 . . . . . . . . . . Utility 6 | . . . . . 2 . . . 2 . . . 2 . . Weapon . | . . . . . . . . . . . . . . . . Parts Attached 257 | 6 11 6 2 . 16 18 . 48 . 34 18 52 34 9 3 Power 23 | 1 1 . 1 . 5 . . 4 . 5 1 3 1 1 . Engine 12 | 1 1 . 1 . 5 . . 2 . . . 2 . . . Core 11 | . . . . . . . . 2 . 5 1 1 1 1 . Reactor . | . . . . . . . . . . . . . . . . Propulsion 58 | 2 2 1 . . 1 . . 14 . 8 9 13 8 . . Treads 26 | 2 2 1 . . . . . 7 . 3 2 7 2 . . Leg 23 | . . . . . . . . 4 . 4 5 6 4 . . Wheel 2 | . . . . . . . . 1 . . . . 1 . . Hover 1 | . . . . . . . . . . . . . 1 . . Flight 6 | . . . . . 1 . . 2 . 1 2 . . . . Utility 74 | 1 2 1 . . 3 4 . 14 . 7 6 17 14 4 1 Device 26 | . . 1 . . . . . 3 . 5 1 4 8 4 . Storage 12 | 1 2 . . . 1 . . 4 . . . 2 2 . . Processor 5 | . . . . . . 1 . . . . 2 . 2 . . Hackware 19 | . . . . . 2 3 . 5 . 1 2 3 2 . 1 Protection 12 | . . . . . . . . 2 . 1 1 8 . . . Artifact . | . . . . . . . . . . . . . . . . Weapon 102 | 2 6 4 1 . 7 14 . 16 . 14 2 19 11 4 2 Energy Gun 11 | . 1 . . . . . . . . 5 . . 2 2 1 Energy Cannon 8 | . . . . . . . . 2 . 2 . . 2 1 1 Ballistic Gun 32 | 2 3 . . . 2 4 . 5 . 1 2 11 2 . . Ballistic Cannon 10 | . . 2 1 . 2 2 . 2 . . . . . 1 . Launcher 6 | . 1 . . . 2 1 . 1 . 1 . . . . . Special Weapon 17 | . . . . . . . . 4 . 3 . 6 4 . . Impact Weapon 15 | . 1 2 . . 1 5 . 1 . 2 . 2 1 . . Slashing Weapon . | . . . . . . . . . . . . . . . . Piercing Weapon . | . . . . . . . . . . . . . . . . Special Melee Weapon 3 | . . . . . . 2 . 1 . . . . . . . Unidentified Prototypes 4 | . . . . . 1 . . . . . 1 . 2 . . Parts Lost 80 | . 1 . . . . . 1 14 . 20 . 11 27 . 6 Power 8 | . . . . . . . 1 1 . 2 . 1 3 . . Propulsion 26 | . 1 . . . . . . 6 . 9 . 4 5 . 1 Utility 26 | . . . . . . . . 3 . 5 . 4 10 . 4 Weapon 20 | . . . . . . . . 4 . 4 . 2 9 . 1 Highest Loss Streak 24 | . 1 . . . . . 1 11 . 9 . 9 24 . 6 To Critical Strikes 1 | . . . . . . . . 1 . . . . . . . Average Slot Usage (%) 84 | . 89 91 100 100 63 66 66 83 84 77 74 96 71 67 94 Engine 6 | . 13 14 14 14 8 9 3 4 7 . . 5 3 . . Core 2 | . . . . . . . . 3 . 6 2 1 . 2 6 Treads 13 | . 27 28 28 28 . . . 7 . 1 3 19 15 . . Leg 8 | . . . . . . . . 12 30 17 8 9 6 26 24 Flight 1 | . . . . . 8 9 9 1 . . 3 . . . . Device 9 | . . 5 14 14 9 1 . 7 7 14 13 11 9 9 24 Storage 10 | . 18 14 14 14 9 9 9 9 7 7 7 7 5 6 6 Processor 1 | . . . . . . . . . . . 8 1 4 6 6 Hackware 8 | . . . . . 9 19 27 17 15 7 6 15 10 6 10 Protection 2 | . . . . . . . . . . 4 2 6 3 . . Energy Gun 3 | . 8 . . . . . . . . 7 . . . 3 11 Energy Cannon 1 | . . . . . . . . 4 7 3 . . . . 1 Ballistic Gun 7 | . 18 2 . . 7 9 9 8 7 . 2 13 6 . . Ballistic Cannon 3 | . . 20 20 28 9 . . 2 . . . . . 3 . Impact Weapon 2 | . 1 5 7 . . 6 9 1 . 1 6 . . . . Naked Turns 8 | . . . . . . . . . . . . . 8 . . Heaviest Build 130 | 13 89 92 92 90 90 50 50 99 96 130 104 118 111 80 78 Greatest Support 96 | 40 40 40 40 40 50 50 50 63 53 53 60 96 96 80 80 Greatest Overweight (x) 43 | . 2 2 2 2 2 . . 22 1 43 29 1 5 1 1 Average Overweight (x) 1 | . 1 2 2 2 . . . 2 1 5 1 . . . . Largest Inventory Capacity 25 | 8 25 25 25 25 25 20 20 25 25 25 25 25 25 20 20 Average Capacity 22 | 6 21 25 25 25 20 20 20 23 25 25 25 24 21 20 20 Most Carried 25 | 2 23 25 25 25 25 20 20 25 25 25 25 25 25 16 17 Average Carried 21 | 1 17 24 24 24 20 19 20 21 25 24 24 23 19 14 16 Final Capacity 25 | 8 25 25 25 25 20 20 20 25 25 25 25 25 20 20 20 Final Carried 25 | 2 22 24 25 25 20 20 20 25 25 24 25 24 15 15 16 Class Distribution -------------------- 43% | Bothacker-Mutant 40% | Mutant 6% | Hacker-Mutant 5% | Derelict-Mutant Dominant Class ---------------- Mutant | -10/Materials Mutant | -10/Mines Mutant | -10/Exiles Mutant | -9/Mines Hacker-Mutant | -8/Materials Hacker-Mutant | -8/Garrison Hacker-Mutant | -8/Materials Bothacker-Mutant | -8/Garrison Bothacker-Mutant | -7/Factory Bothacker-Mutant | -7/Garrison Bothacker-Mutant | -7/Factory Bothacker-Mutant | -7/Garrison Bothacker-Mutant | -6/Factory Mutant | -6/Lower Caves Derelict-Mutant | -6/Lower Caves Resources | -11 -10 -10 -10 -9 -8 -8 -8 -8 -7 -7 -7 -7 -6 -6 -6 ----------- Run | Yrd Mat Min Exi Min Mat Gar Mat Gar Fac Gar Fac Gar Fac Low Low Matter Collected 5998 | 216 426 205 . 25 130 701 . 887 . 716 304 1470 636 205 77 Remotely 506 | . . . . . . . . 54 . . . 287 165 . . Salvage Created 4082 | . 896 173 . . 83 390 . 398 . 781 55 804 351 151 . Parts 206 | . 53 12 . . 15 18 . 19 . 35 2 42 7 3 . Haulers Intercepted 2 | . 2 . . . . . . . . . . . . . . Recyclers Shooed . | . . . . . . . . . . . . . . . . Parts Field Recycled . | . . . . . . . . . . . . . . . . Retrieved Matter . | . . . . . . . . . . . . . . . . Parts Self-Destructed 2 | . . . . . . . . . . . . . . . 2 Prevented 2 | . . . . . . . . . . . . . . 2 . Kills | -11 -10 -10 -10 -9 -8 -8 -8 -8 -7 -7 -7 -7 -6 -6 -6 ------- Run | Yrd Mat Min Exi Min Mat Gar Mat Gar Fac Gar Fac Gar Fac Low Low Combat Hostiles Destroyed 112 | . 18 9 . . 7 12 . 13 . 20 1 22 8 2 . Guns 73 | . 15 2 . . 1 9 . 3 . 12 1 22 7 1 . Cannons 18 | . . 7 . . 1 . . 7 . 3 . . . . . AOE 17 | . 3 . . . 5 2 . 3 . 4 . . . . . Classes Destroyed 13 | . 4 2 . . 1 1 . 2 . 3 . . . . . Worker 3 | . 2 . . . 1 . . . . . . . . . . Hauler 2 | . 2 . . . . . . . . . . . . . . Watcher 3 | . 1 . . . . 2 . . . . . . . . . Swarmer 28 | . . 3 . . 6 3 . 3 . 6 . 7 . . . Cutter 2 | . . . . . . . . . . 2 . . . . . Grunt 53 | . 18 4 . . . 5 . 3 . 6 1 9 6 1 . Brawler 3 | . . . . . . . . . . 2 . . 1 . . Duelist 3 | . . . . . . . . 1 . 1 . 1 . . . Sentry 13 | . . . . . 1 1 . 3 . 2 . 5 . 1 . Specialist 2 | . . . . . . . . . . 2 . . . . . Hunter 4 | . . . . . . . . 3 . . . 1 . . . Programmer 4 | . . . . . . 3 . . . . . . 1 . . Decomposer 1 | . . . . . . . . . . . . . . 1 . Assembled 2 | . . 2 . . . . . . . . . . . . . Best Kill Streak 5 | . 5 4 . . 3 3 . 3 . 5 1 4 3 1 . Combat Bots Only 5 | . 4 4 . . 3 3 . 3 . 5 1 4 3 1 . Max Kills in Single Turn 3 | . 1 2 . . 3 2 . 2 . 2 1 1 2 1 . Gunslinging 1 | . . . . . . . . . . 1 . . . . . Exploded 3 | . 1 . . . 3 2 . 2 . 2 . . . . . Melee . | . . . . . . . . . . . . . . . . Uniques/NPCs Destroyed . | . . . . . . . . . . . . . . . . Combat | -11 -10 -10 -10 -9 -8 -8 -8 -8 -7 -7 -7 -7 -6 -6 -6 -------- Run | Yrd Mat Min Exi Min Mat Gar Mat Gar Fac Gar Fac Gar Fac Low Low Hostile Shots Fired 1370 | . 82 20 . . 24 73 6 194 . 294 11 506 129 25 6 Missed 393 | . 28 5 . . 10 28 3 33 . 77 . 170 29 7 3 Damage Taken 13142 | . 678 222 . . 154 706 50 2599 . 2518 175 3272 1871 191 706 Core 1977 | . 111 38 . . 10 70 17 355 . 279 18 348 471 11 249 Absorbed by Shields 377 | . . . . . . . . . . . . 334 43 . . Ignored by Resistances 216 | . . . . . . . . . . . . 216 . . . Regen/Repaired (Parts) 109 | . 94 . . . 15 . . . . . . . . . . Core Remaining (%) 41 | 100 . . . 40 . . . 17 . . . 7 . . . Volleys Fired 458 | . 71 19 . . 9 25 . 65 . 64 7 104 48 10 36 Largest 2 | . 2 2 . . 2 2 . 2 . 2 2 2 2 2 1 Hottest 170 | . 60 70 . . 70 60 . 110 . 170 56 58 85 110 85 Shots Fired 770 | . 135 38 . . 14 49 . 114 . 107 9 182 69 17 36 Gun 551 | . 131 4 . . 3 34 . 48 . 78 9 169 61 14 . Cannon 159 | . . 34 . . 7 14 . 53 . 9 . . 3 3 36 Launcher 16 | . 4 . . . 4 1 . 2 . 5 . . . . . Special 44 | . . . . . . . . 11 . 15 . 13 5 . . Kinetic 539 | . 113 38 . . 10 48 . 84 . 16 9 169 51 1 . Thermal 145 | . 18 . . . . . . 17 . 71 . . 3 . 36 Explosive 16 | . 4 . . . 4 1 . 2 . 5 . . . . . Electromagnetic 26 | . . . . . . . . . . . . . 10 16 . Robot Hit Streak 35 | . 8 7 . . 5 7 . 14 . 35 4 10 11 6 . Robot Miss Streak 7 | . 4 3 . . 4 7 . 7 . 5 5 7 5 2 . Penetration Max 1 | . . . . . . . . . . 1 . . . . . Secondary Targets 15 | . 2 . . . . . . . . 5 . 6 2 . . Max Gunslinging Chain 1 | . 1 . . . . . . . . 1 . 1 1 . . Shots Hit Robots 512 | . 77 15 . . 6 57 . 63 . 79 6 140 58 11 . Core Hits 380 | . 40 11 . . 9 23 . 38 . 52 4 126 70 7 . Critical Kills 1 | . 1 . . . . . . . . . . . . . . Critical Parts Destroyed 3 | . . . . . . 1 . 2 . . . . . . . Critical Strikes 8 | . 1 2 . . . 1 . 4 . . . . . . . Destroy 3 | . 1 . . . . . . 2 . . . . . . . Blast 4 | . . 2 . . . . . 2 . . . . . . . Smash 1 | . . . . . . 1 . . . . . . . . . Melee Attacks 101 | . 4 7 . . 2 68 3 3 . 4 . 10 . . . Impact 85 | . 4 7 . . 2 52 3 3 . 4 . 10 . . . Slashing . | . . . . . . . . . . . . . . . . Piercing . | . . . . . . . . . . . . . . . . Sneak Attacks 16 | . . . . . . 16 . . . . . . . . . Combat Hostiles . | . . . . . . . . . . . . . . . . Follow-up Attacks . | . . . . . . . . . . . . . . . . Damage Inflicted 10272 | . 1179 314 . . 381 1255 . 1124 . 2034 87 2451 1200 226 21 Guns 6978 | . 858 24 . . 33 527 . 336 . 1388 87 2451 1123 151 . Cannons 1402 | . . 274 . . 50 125 . 580 . 239 . . 59 75 . Explosions 1390 | . 321 . . . 298 156 . 208 . 407 . . . . . Melee 447 | . . . . . . 447 . . . . . . . . . Ramming 55 | . . 16 . . . . . . . . . . 18 . 21 Kinetic 6241 | . 742 298 . . 83 652 . 708 . 183 87 2451 1017 20 . Thermal 1827 | . 116 . . . . . . 208 . 1444 . . 59 . . Explosive 1390 | . 321 . . . 298 156 . 208 . 407 . . . . . Electromagnetic 312 | . . . . . . . . . . . . . 106 206 . Impact 447 | . . . . . . 447 . . . . . . . . . Slashing . | . . . . . . . . . . . . . . . . Piercing . | . . . . . . . . . . . . . . . . Highest Corruption 21 | . . . . . 4 4 4 4 . 2 3 3 3 3 21 Average Corruption 3 | . . . . . 4 4 4 4 . 2 2 3 3 3 5 Corruption Purged . | . . . . . . . . . . . . . . . . Corruption Blocked . | . . . . . . . . . . . . . . . . Effects 158 | . . . . . 5 17 2 28 . 30 6 35 16 7 12 Message Errors 25 | . . . . . 3 2 . 4 . 3 1 5 3 1 3 Matter Fused 41 | . . . . . . 5 . 6 . 10 2 8 6 1 3 Heat Flow Errors 30 | . . . . . 2 3 2 5 . 4 1 5 2 4 2 Energy Discharges 20 | . . . . . . 3 . 3 . 6 1 4 1 1 1 Parts Fused 1 | . . . . . . . . . . . . 1 . . . Data Loss (minor) 17 | . . . . . . 1 . 3 . 2 1 5 2 . 3 Data Loss (major) 10 | . . . . . . 2 . 3 . 3 . 2 . . . Misfires 7 | . . . . . . 1 . 1 . 2 . 3 . . . Alerts 2 | . . . . . . . . 1 . . . 1 . . . Weapon Failures 5 | . . . . . . . . 2 . . . 1 2 . . Overload Shots . | . . . . . . . . . . . . . . . . Overflow Damage 337 | . 7 . . . 20 298 . 12 . . . . . . . Projectiles . | . . . . . . . . . . . . . . . . Explosions 90 | . 7 . . . 20 51 . 12 . . . . . . . Melee 247 | . . . . . . 247 . . . . . . . . . Knockbacks 14 | . . 6 . . . 4 . 3 . . . . . 1 . Impact 1 | . . . . . . 1 . . . . . . . . . Kinetic 12 | . . 5 . . . 3 . 3 . . . . . 1 . Secondary 1 | . . 1 . . . . . . . . . . . . . Self-Inflicted Damage 43 | . . . . . . 18 . . . . . . 4 . 21 Shots 1 | . . . . . . 1 . . . . . . . . . Rammed 5 | . . 1 . . . . . . . . . . 4 . . Targets Rammed 5 | . . 1 . . . . . . . . . . 4 . . Kicked . | . . . . . . . . . . . . . . . . Crushed . | . . . . . . . . . . . . . . . . Highest Temperature 427 | . 18 61 . . 153 262 275 427 . 328 147 241 209 235 185 Average Temperature 89 | . 7 28 . . 37 109 136 177 . 81 93 66 100 101 97 Received Heat Transfer 3676 | . 399 74 . . 9 273 . 414 . 663 54 990 734 66 . Effects 4 | . . . . . . . . 3 . 1 . . . . . Shutdowns 4 | . . . . . . . . 3 . 1 . . . . . Siege Activations . | . . . . . . . . . . . . . . . . Robots Corrupted 2 | . . . . . . . . . . . . . 1 1 . Combat Hostiles 2 | . . . . . . . . . . . . . 1 1 . Parts Fried 7 | . . . . . . 5 . . . . . . 1 1 . Impact Corruptions 4 | . . . . . . 4 . . . . . . . . . Robots Melted 1 | . . . . . . . . . . 1 . . . . . Combat Hostiles 1 | . . . . . . . . . . 1 . . . . . Parts Melted 10 | . . . . . . . . . . 10 . . . . . Heat Transferred 3143 | . 275 . . . . . . 222 . 2609 . . 37 . . Parts Sabotaged 3 | . . . . . . . . . . . . . 3 . . Parts Stolen . | . . . . . . . . . . . . . . . . Parts Stripped . | . . . . . . . . . . . . . . . . Power Chain Reactions . | . . . . . . . . . . . . . . . . Alert | -11 -10 -10 -10 -9 -8 -8 -8 -8 -7 -7 -7 -7 -6 -6 -6 ------- Run | Yrd Mat Min Exi Min Mat Gar Mat Gar Fac Gar Fac Gar Fac Low Low Peak Influence 1264 | . 216 192 . . 360 1094 546 977 512 1039 749 1264 661 . . Initial 653 | . . 25 . . . 234 533 354 512 358 545 384 653 . . Average 498 | . 69 99 . . 176 619 540 642 512 801 580 827 506 . . Maximum Alert Level 4 | . 1 . . . 1 3 2 3 2 3 3 4 2 . . Low Security (%) 31 | 100 97 100 . 100 62 . . . . . . . . . . Level 1 7 | . 2 . . . 37 28 . . . 2 . . 30 . . Level 2 26 | . . . . . . 30 100 58 100 16 92 22 69 . . Level 3 34 | . . . . . . 41 . 40 . 80 7 70 . . . Level 4 1 | . . . . . . . . . . . . 6 . . . Level 5 . | . . . . . . . . . . . . . . . . High Security . | . . . . . . . . . . . . . . . . Max Security . | . . . . . . . . . . . . . . . . Squads Dispatched 13 | . 6 . . . . . . . . . 3 . 4 . . Investigation 4 | . 3 . . . . . . . . . 1 . . . . Extermination 1 | . . . . . . . . . . . . . 1 . . Reinforcement 4 | . 3 . . . . . . . . . . . 1 . . Assault 2 | . . . . . . . . . . . . . 2 . . Garrison 2 | . . . . . . . . . . . 2 . . . . Intercept . | . . . . . . . . . . . . . . . . Searches Triggered . | . . . . . . . . . . . . . . . . Construction Impeded . | . . . . . . . . . . . . . . . . Haulers Reinforced . | . . . . . . . . . . . . . . . . Active Scanning Responses . | . . . . . . . . . . . . . . . . Cargo Convoy Interrupts . | . . . . . . . . . . . . . . . . Stealth | -11 -10 -10 -10 -9 -8 -8 -8 -8 -7 -7 -7 -7 -6 -6 -6 --------- Run | Yrd Mat Min Exi Min Mat Gar Mat Gar Fac Gar Fac Gar Fac Low Low Distress Signals 5 | . 1 . . . 1 . . 3 . . . . . . . Communications Jammed . | . . . . . . . . . . . . . . . . Distress Signals . | . . . . . . . . . . . . . . . . Times Spotted 236 | . 38 9 1 . 13 26 3 38 . 27 6 47 22 5 1 Peak Tracking Total 10 | . 6 4 3 . 5 8 4 10 . 9 3 10 7 3 1 Tactical Retreats 16 | . . . . . 2 2 . 2 . . 1 4 2 2 1 Traps | -11 -10 -10 -10 -9 -8 -8 -8 -8 -7 -7 -7 -7 -6 -6 -6 ------- Run | Yrd Mat Min Exi Min Mat Gar Mat Gar Fac Gar Fac Gar Fac Low Low Traps Triggered 25 | . 2 1 . . . 5 . 4 . 1 1 11 . . . Indirectly . | . . . . . . . . . . . . . . . . Trap Hack Attempts . | . . . . . . . . . . . . . . . . Triggered . | . . . . . . . . . . . . . . . . Disarmed . | . . . . . . . . . . . . . . . . Reprogrammed . | . . . . . . . . . . . . . . . . Reused . | . . . . . . . . . . . . . . . . Traps Extracted . | . . . . . . . . . . . . . . . . Installed 1 | . . . . . . . . . . . . . . . 1 Triggered 2 | . . . . . . . . . . . . . . . 2 Most Traps Carried 1 | . . . . . . . . . . . . . . . 1 Machines | -11 -10 -10 -10 -9 -8 -8 -8 -8 -7 -7 -7 -7 -6 -6 -6 ---------- Run | Yrd Mat Min Exi Min Mat Gar Mat Gar Fac Gar Fac Gar Fac Low Low Machines Disabled 16 | . . . . . . 8 . 2 . 3 1 2 . . . Max in Single Turn 1 | . . . . . . 1 . 1 . 1 . 1 . . . Garrison Relay 14 | . . . . . . 7 . 2 . 3 . 2 . . . Machines Repaired . | . . . . . . . . . . . . . . . . Machines Dismantled . | . . . . . . . . . . . . . . . . Machines Sabotaged . | . . . . . . . . . . . . . . . . Overloaded Fab Kills . | . . . . . . . . . . . . . . . . Hacking | -11 -10 -10 -10 -9 -8 -8 -8 -8 -7 -7 -7 -7 -6 -6 -6 --------- Run | Yrd Mat Min Exi Min Mat Gar Mat Gar Fac Gar Fac Gar Fac Low Low Machines Accessed 17 | . 3 1 1 . 4 1 2 1 1 . 2 . 1 . . Terminals 8 | . 2 . . . 1 1 1 1 . . 1 . 1 . . Fabricators . | . . . . . . . . . . . . . . . . Repair Stations 2 | . 1 . . . 1 . . . . . . . . . . Recycling Units . | . . . . . . . . . . . . . . . . Scanalyzers 1 | . . . . . 1 . . . . . . . . . . Garrison Access 4 | . . . . . 1 . 1 . 1 . 1 . . . . Total Hacks 35 | . 10 1 1 . 10 2 2 3 1 . 4 . 1 . . Successful 21 | . 3 1 1 . 9 1 2 1 1 . 1 . 1 . . Failed 14 | . 7 . . . 1 1 . 2 . . 3 . . . . Catastrophic 2 | . 1 . . . . . . . . . 1 . . . . Database Lockouts . | . . . . . . . . . . . . . . . . Manual 4 | . . . 1 . 1 . 1 . . . . . 1 . . Terminals 19 | . 7 . . . 2 2 1 3 . . 3 . 1 . . Fabricators . | . . . . . . . . . . . . . . . . Repair Stations 6 | . 3 . . . 3 . . . . . . . . . . Recycling Units . | . . . . . . . . . . . . . . . . Scanalyzers 4 | . . . . . 4 . . . . . . . . . . Garrison Access 4 | . . . . . 1 . 1 . 1 . 1 . . . . Terminal Hacks 9 | . 1 1 1 . 2 1 1 1 . . . . 1 . . Open Door 1 | . . 1 . . . . . . . . . . . . . Branch Access Points 1 | . . . . . . . . . . . . . 1 . . Emergency Access Points 2 | . . . . . . 1 . 1 . . . . . . . Alert Level 1 | . . . . . 1 . . . . . . . . . . Locate Traps 1 | . 1 . . . . . . . . . . . . . . Zone Layout 2 | . . . . . 1 . 1 . . . . . . . . Derelict Proto ID Bank 1 | . . . 1 . . . . . . . . . . . . Fabricator Hacks . | . . . . . . . . . . . . . . . . Repair Station Hacks 4 | . 2 . . . 2 . . . . . . . . . . Scan Component 2 | . 1 . . . 1 . . . . . . . . . . Repair 2 | . 1 . . . 1 . . . . . . . . . . Recycling Unit Hacks . | . . . . . . . . . . . . . . . . Scanalyzer 4 | . . . . . 4 . . . . . . . . . . Insert Component 2 | . . . . . 2 . . . . . . . . . . Analyze 2 | . . . . . 2 . . . . . . . . . . Garrison Access Hacks 4 | . . . . . 1 . 1 . 1 . 1 . . . . Unlock Access 4 | . . . . . 1 . 1 . 1 . 1 . . . . Unauthorized Hacks . | . . . . . . . . . . . . . . . . Terminals . | . . . . . . . . . . . . . . . . Fabricators . | . . . . . . . . . . . . . . . . Repair Stations . | . . . . . . . . . . . . . . . . Recycling Units . | . . . . . . . . . . . . . . . . Scanalyzers . | . . . . . . . . . . . . . . . . Garrison Access . | . . . . . . . . . . . . . . . . Data Cores Recovered . | . . . . . . . . . . . . . . . . Used . | . . . . . . . . . . . . . . . . Hacking Detections 8 | . 3 . . . 1 1 1 1 . . 1 . . . . Full Trace Events 3 | . 2 . . . . . . . . . 1 . . . . Feedback Events . | . . . . . . . . . . . . . . . . Feedback Blocked . | . . . . . . . . . . . . . . . . Robot Schematics Acquired . | . . . . . . . . . . . . . . . . Robots Built . | . . . . . . . . . . . . . . . . Authchips . | . . . . . . . . . . . . . . . . Time . | . . . . . . . . . . . . . . . . Total Robot Build Rating . | . . . . . . . . . . . . . . . . Part Schematics Acquired 2 | . . . . . 2 . . . . . . . . . . Parts Built . | . . . . . . . . . . . . . . . . Authchips . | . . . . . . . . . . . . . . . . Time . | . . . . . . . . . . . . . . . . Total Part Build Rating . | . . . . . . . . . . . . . . . . Parts Repaired 2 | . 1 . . . 1 . . . . . . . . . . Time 52 | . 26 . . . 26 . . . . . . . . . . Parts Recycled . | . . . . . . . . . . . . . . . . Recycled Matter . | . . . . . . . . . . . . . . . . Retrieved Matter . | . . . . . . . . . . . . . . . . Retrieved Components . | . . . . . . . . . . . . . . . . Parts Scanalyzed 2 | . . . . . 2 . . . . . . . . . . Part Schematics Acquired 2 | . . . . . 2 . . . . . . . . . . Parts Damaged . | . . . . . . . . . . . . . . . . Bothacking | -11 -10 -10 -10 -9 -8 -8 -8 -8 -7 -7 -7 -7 -6 -6 -6 ------------ Run | Yrd Mat Min Exi Min Mat Gar Mat Gar Fac Gar Fac Gar Fac Low Low Used RIF Installer 4 | . . . . . . 1 . 1 . 1 . 1 . . . Command Fork 1 | . . . . . . . . 1 . . . . . . . Patrol Navigation 1 | . . . . . . . . . . . . 1 . . . Program Shield 1 | . . . . . . . . . . 1 . . . . . Robots Hacked 26 | . . . . . . 3 . 7 . 3 . 10 3 . . Non-combat 2 | . . . . . . . . 1 . . . . 1 . . Combat 24 | . . . . . . 3 . 6 . 3 . 10 2 . . Robot Hacks Applied 26 | . . . . . . 3 . 7 . 3 . 10 3 . . parse_system 1 | . . . . . . 1 . . . . . . . . . find_chute 1 | . . . . . . . . . . . . . 1 . . relay_feed 1 | . . . . . . . . 1 . . . . . . . amplify_resonance 6 | . . . . . . . . 1 . 1 . 4 . . . overwrite_iff 11 | . . . . . . . . 4 . 1 . 4 2 . . formatsys_high 6 | . . . . . . 2 . 1 . 1 . 2 . . . Relay Couplers Released 58 | . . . . . . 28 . 10 . 12 . 8 . . . Machine Destruction 58 | . . . . . . 28 . 10 . 12 . 8 . . . Attached 15 | . . . . . . 2 . 5 . 1 2 3 2 . . Fabnet Peak Effective % . | . . . . . . . . . . . . . . . . Robots Rewired 11 | . . . . . . 8 . . . 3 . . . . . Allies Hacked . | . . . . . . . . . . . . . . . . Hacks Repelled . | . . . . . . . . . . . . . . . . Allies | -11 -10 -10 -10 -9 -8 -8 -8 -8 -7 -7 -7 -7 -6 -6 -6 -------- Run | Yrd Mat Min Exi Min Mat Gar Mat Gar Fac Gar Fac Gar Fac Low Low Total Allies 30 | . . . . . . 10 . 6 . 5 . 7 2 . . Largest Group 8 | . . . . . . 8 . 2 . 3 3 3 1 . . Highest-Rated Group 112 | . . . . . . 112 . 29 . 64 63 57 47 . . Highest-Rated Ally 47 | . . . . . . 18 . 29 . 32 21 43 47 . . Total Orders 2 | . . . . . . . . . . . . 2 . . . STAY 1 | . . . . . . . . . . . . 1 . . . FOLLOW 1 | . . . . . . . . . . . . 1 . . . Ally Attacks 157 | . . . . . . 37 . 34 . 7 22 53 4 . . Total Damage 3031 | . . . . . . 865 . 396 . 238 402 1080 50 . . Kills 34 | . . . . . . 7 . 9 . 1 6 11 . . . Allies Corrupted . | . . . . . . . . . . . . . . . . Allies Melted . | . . . . . . . . . . . . . . . . Field Lobotomies 1 | . . . . . . . . 1 . . . . . . . Intel | -11 -10 -10 -10 -9 -8 -8 -8 -8 -7 -7 -7 -7 -6 -6 -6 ------- Run | Yrd Mat Min Exi Min Mat Gar Mat Gar Fac Gar Fac Gar Fac Low Low Robot Analysis Total . | . . . . . . . . . . . . . . . . Derelict Logs Recovered . | . . . . . . . . . . . . . . . . Drone Launches . | . . . . . . . . . . . . . . . . Drone Recoveries . | . . . . . . . . . . . . . . . . Exploration | -11 -10 -10 -10 -9 -8 -8 -8 -8 -7 -7 -7 -7 -6 -6 -6 ------------- Run | Yrd Mat Min Exi Min Mat Gar Mat Gar Fac Gar Fac Gar Fac Low Low Turns Passed 13363 | 88 2452 608 706 287 373 880 55 1372 27 2096 442 1872 1005 457 643 Spaces Moved 5841 | 53 864 157 219 90 436 1018 92 544 14 395 191 683 430 252 403 Core 197 | 6 . . . . . . . 12 . 36 1 . 142 . . Treads 2093 | 47 864 157 219 90 7 . . 2 . 64 23 454 166 . . Legs 1469 | . . . . . . . . 222 14 197 32 229 120 252 403 Wheels 107 | . . . . . . . . 105 . . . . 2 . . Hover . | . . . . . . . . . . . . . . . . Flight 1975 | . . . . . 429 1018 92 203 . 98 135 . . . . Fastest Speed 50 | 50 160 320 320 320 50 50 50 50 190 150 150 160 50 120 120 Average Speed 183 | 147 250 320 320 320 55 50 50 179 190 460 193 213 151 161 121 Slowest Speed 2200 | 160 320 320 320 320 320 50 50 1150 190 2200 1500 240 240 190 190 Overloaded Moves . | . . . . . . . . . . . . . . . . Propulsion Burnouts . | . . . . . . . . . . . . . . . . Robots Hopped 11 | . . . . . 8 2 1 . . . . . . . . Cave-ins Triggered 2 | . . . . . . . . . . . . . . . 2 Exploration Rate (%) 39 | 5 96 35 59 24 44 91 14 64 1 39 4 60 8 38 45 Regions Visited 15 Branch Regions 5 Pre-discovered Areas . | . . . . . . . . . . . . . . . . Known Exits Taken 5 | . . . . . 1 . 1 . 1 . 1 . 1 . . Unknown Exits Taken 6 | 1 1 1 1 1 . . . . . . . . . 1 . Scrap Searched 4 | . . 1 . 1 . . . . . . . . . 1 1 Spaces Dug 28 | . 3 2 . . 2 8 3 . . 1 . 5 . . 4 Terrain Destroyed 156 | . 28 2 . . 38 8 3 22 . 13 . 6 1 . 35 Melee 23 | . 3 2 . . 2 7 3 . . 1 . 5 . . . Projectile 41 | . . . . . . . . 4 . . . 1 1 . 35 AOE 92 | . 25 . . . 36 1 . 18 . 12 . . . . . Terrain Rammed 3 | . . . . . . . . . . . . . . . 3 Walls Destroyed . | . . . . . . . . . . . . . . . . Machines Disabled . | . . . . . . . . . . . . . . . . Actions | -11 -10 -10 -10 -9 -8 -8 -8 -8 -7 -7 -7 -7 -6 -6 -6 --------- Run | Yrd Mat Min Exi Min Mat Gar Mat Gar Fac Gar Fac Gar Fac Low Low Total 7650 | 60 1021 215 228 91 549 1249 96 831 14 565 255 955 719 284 518 Wait 571 | . 45 10 . . 59 55 . 91 . 26 14 31 164 8 68 Move 5808 | 52 863 156 218 89 421 1013 90 543 14 394 191 682 429 251 402 Hop 10 | . . . . . 7 2 1 . . . . . . . . Pick Up 162 | 2 22 9 3 1 14 5 1 26 . 24 11 23 16 3 2 Fast Attach 71 | 6 4 . . . 7 4 . 10 . 5 8 6 17 3 1 Attach 103 | . 2 2 1 . 2 1 . 28 . 22 6 19 13 6 1 Detach 34 | . 1 . . . . 1 . 10 . 5 1 4 8 3 1 Swap 83 | . 5 4 1 . 7 13 . 10 . 7 4 27 4 . 1 Drop 122 | . 4 7 5 1 21 8 1 15 . 9 13 27 10 . 1 Fire 458 | . 71 19 . . 9 25 . 65 . 64 7 104 48 10 36 Melee 101 | . 4 7 . . 2 68 3 3 . 4 . 10 . . . Ram 5 | . . . . . . . . . . . . . 2 . 3 Kick . | . . . . . . . . . . . . . . . . Crush 3 | . . 1 . . . . . . . . . . 2 . . Escape Stasis 112 | . . . . . . 54 . 30 . 5 . 22 . . 1 Rewire 6 | . . . . . . . . . . . . . 6 . . Trap 1 | . . . . . . . . . . . . . . . 1 Miscellaneous . | . . . . . . . . . . . . . . . . Route ------- -11/Scrapyard -10/Materials (discovered 5 exits: [*Mat x3] / *Min / [*Sub]) -10/Mines (discovered 2 exits: [*Mat] / *Exi) -10/Exiles -9/Mines -8/Materials (discovered 2 exits: *Fac / Gar) -8/Garrison (discovered 3 exits: *Mat x3) -8/Materials -8/Garrison (discovered 2 exits: *Fac x2) -7/Factory -7/Garrison -7/Factory -7/Garrison (discovered 2 exits: *Fac x2) -6/Factory (discovered 2 exits: *Low x2) -6/Lower Caves -6/Lower Caves History --------- Turn | Location | Event 3 | -11/Scrapyard | Discovered new exit (range 15) 89 | -11/Scrapyard | Entered Materials 174 | -10/Materials | Discovered new exit (range 13) 315 | -10/Materials | Build established: Mutant 499 | -10/Materials | Discovered new exit (range 15) 534 | -10/Materials | Repaired Lgt. Treads 1380 | -10/Materials | Discovered new exit (range 5) 1502 | -10/Materials | Discovered new exit (range 10) 2215 | -10/Materials | Discovered new exit (range 15) 2541 | -10/Materials | Entered Mines 2543 | -10/Mines | Core integrity fell below 50% 2630 | -10/Mines | Excavation squad dispatched 2630 | -10/Mines | A large section of the Mines collapsed 2726 | -10/Mines | Discovered new exit (range 3) 2746 | -10/Mines | Met a Derelict who couldn't figure out how to use a Trap Extractor 3137 | -10/Mines | Deemed a non-threat by the Exiles lab entrance 3137 | -10/Mines | Discovered new exit (range 5) 3149 | -10/Mines | Entered Exiles 3223 | -10/Exiles | Met 8R-AWN 3281 | -10/Exiles | Met EX-HEX 3370 | -10/Exiles | Met EX-BIN 3409 | -10/Exiles | Aligned with FarCom system 3412 | -10/Exiles | Given EX-Vault access code 3485 | -10/Exiles | Opened EX-Vault 3505 | -10/Exiles | Found Field Lobotomy Kit 3516 | -10/Exiles | Found Superbattery 3528 | -10/Exiles | Found Flying Fortress v7 3596 | -10/Exiles | Warned to stay clear of 0b10 Research branches 3622 | -10/Exiles | Exiles lab attacked by MAIN.C 3826 | -10/Exiles | Discovered new exit (range 10) 3855 | -10/Exiles | Stole three prototypes: Flying Fortress v7, Superbattery, Field Lobotomy Kit 3855 | -10/Exiles | Entered Mines 4119 | -9/Mines | Discovered new exit (range 5) 4142 | -9/Mines | Entered Materials 4142 | -8/Materials | Evolved 4 slots: Propulsion x2, Utility x2 4463 | -8/Materials | Repaired Lgt. Ion Engine 4508 | -8/Materials | Discovered new exit (range 11) 4515 | -8/Materials | Identified exit to Garrison 4515 | -8/Materials | Entered Garrison 4565 | -8/Garrison | Triggered checkpoint 4591 | -8/Garrison | Garrison Relay disabled 4602 | -8/Garrison | Build established: Hacker-Mutant 4645 | -8/Garrison | Triggered checkpoint 4715 | -8/Garrison | Discovered new exit (range 14) 4751 | -8/Garrison | Triggered checkpoint 4762 | -8/Garrison | Installed Relay Interface Framework 4778 | -8/Garrison | Garrison Relay disabled 4833 | -8/Garrison | Discovered new exit (range 9) 4979 | -8/Garrison | Garrison Relay disabled 4987 | -8/Garrison | Garrison Relay disabled 5031 | -8/Garrison | Garrison Relay disabled 5033 | -8/Garrison | Triggered checkpoint 5157 | -8/Garrison | Triggered checkpoint 5186 | -8/Garrison | Garrison Relay disabled 5285 | -8/Garrison | Triggered checkpoint 5312 | -8/Garrison | Spotted B-75 Beast 5353 | -8/Garrison | Garrison Relay disabled 5363 | -8/Garrison | Triggered checkpoint 5378 | -8/Garrison | Discovered new exit (range 3) 5388 | -8/Garrison | Lost 7 allies 5395 | -8/Garrison | Entered Materials 5450 | -8/Materials | Identified exit to Garrison 5450 | -8/Materials | Entered Garrison 5458 | -8/Garrison | Garrison Relay disabled 5666 | -8/Garrison | Triggered checkpoint 5758 | -8/Garrison | Build established: Bothacker-Mutant 5831 | -8/Garrison | Assimilated H-55 Commando with FLK Orb 5836 | -8/Garrison | Core integrity fell below 50% 5866 | -8/Garrison | Lost 11 parts (1p4n3u3w) 5986 | -8/Garrison | Triggered checkpoint 6064 | -8/Garrison | Triggered checkpoint 6114 | -8/Garrison | Lost 3 allies 6151 | -8/Garrison | Lost 3 parts (2n1w) 6276 | -8/Garrison | Core integrity fell below 20% 6506 | -8/Garrison | Discovered new exit (range 9) 6608 | -8/Garrison | Triggered checkpoint 6648 | -8/Garrison | Build established: Scavenger-Mutant 6714 | -8/Garrison | Garrison Relay disabled 6751 | -8/Garrison | Discovered new exit (range 9) 6791 | -8/Garrison | Expanded RIF knowledge: Command Fork 6822 | -8/Garrison | Entered Factory 6822 | -7/Factory | Evolved 2 slots: Utility x2 6824 | -7/Factory | FarCom data flow suspended 6849 | -7/Factory | Identified exit to Garrison 6849 | -7/Factory | Entered Garrison 6887 | -7/Garrison | Triggered checkpoint 6947 | -7/Garrison | Garrison Relay disabled 7036 | -7/Garrison | Build established: Bothacker-Mutant 7055 | -7/Garrison | Triggered checkpoint 7055 | -7/Garrison | Triggered checkpoint 7055 | -7/Garrison | Triggered checkpoint 7099 | -7/Garrison | Lost 4 parts (1p1n1u1w) 7100 | -7/Garrison | Triggered checkpoint 7466 | -7/Garrison | Discovered new exit (range 10) 7511 | -7/Garrison | Triggered checkpoint 7543 | -7/Garrison | Garrison Relay disabled 8341 | -7/Garrison | Triggered checkpoint 8399 | -7/Garrison | Lost 5 parts (3n1u1w) 8439 | -7/Garrison | Expanded RIF knowledge: Program Shield 8669 | -7/Garrison | Triggered checkpoint 8671 | -7/Garrison | Lost 9 parts (1p4n3u1w) 8750 | -7/Garrison | Garrison Relay disabled 8945 | -7/Garrison | Entered Factory 8945 | -7/Factory | Accompanied by 3 allies 9198 | -7/Factory | Garrison activated, responded to threat 9227 | -7/Factory | Found Powered Armor 9238 | -7/Factory | Found Powered Armor 9246 | -7/Factory | Found Powered Armor 9250 | -7/Factory | Found Powered Armor 9384 | -7/Factory | Identified exit to Garrison 9387 | -7/Factory | Entered Garrison 9387 | -7/Garrison | Accompanied by 2 allies 9485 | -7/Garrison | Triggered checkpoint 9612 | -7/Garrison | Garrison Relay disabled 9671 | -7/Garrison | Found Hvy. Reflective Plating 9707 | -7/Garrison | Triggered checkpoint 9723 | -7/Garrison | Triggered checkpoint 9773 | -7/Garrison | Triggered checkpoint 9788 | -7/Garrison | Core integrity fell below 50% 10053 | -7/Garrison | Lost 9 parts (1p3n3u2w) 10069 | -7/Garrison | Triggered checkpoint 10087 | -7/Garrison | Triggered checkpoint 10139 | -7/Garrison | Discovered new exit (range 12) 10192 | -7/Garrison | Core integrity fell below 20% 10290 | -7/Garrison | Garrison Relay disabled 10694 | -7/Garrison | Discovered new exit (range 13) 10881 | -7/Garrison | Expanded RIF knowledge: Patrol Navigation 11117 | -7/Garrison | Triggered checkpoint 11207 | -7/Garrison | Triggered checkpoint 11259 | -7/Garrison | Entered Factory 11259 | -6/Factory | Evolved 2 slots: Utility x2 11288 | -6/Factory | Identified exit to Lower Caves 11609 | -6/Factory | First assault squad dispatched 11914 | -6/Factory | Released all parts (5) 11945 | -6/Factory | Lost 24 parts (2p4n10u8w) 12066 | -6/Factory | Core integrity fell below 50% 12188 | -6/Factory | Build established: Mutant 12264 | -6/Factory | Entered Lower Caves 12297 | -6/Lower Caves | Encountered a Warlord checkpoint 12561 | -6/Lower Caves | Attracted the attention of an 0b10 checkpoint 12705 | -6/Lower Caves | Discovered new exit (range 7) 12721 | -6/Lower Caves | Entered another Lower Caves area 12845 | -6/Lower Caves | Build established: Derelict-Mutant 13053 | -6/Lower Caves | Spotted B-75 Beast 13256 | -6/Lower Caves | Crushed by falling debris 13257 | -6/Lower Caves | System corruption reached 10% 13280 | -6/Lower Caves | Crushed by falling debris 13280 | -6/Lower Caves | Core integrity fell below 20% 13311 | -6/Lower Caves | Lost 6 parts (1n4u1w) 13364 | -6/Lower Caves | Self-destructed Last Messages --------------- 13280_ Transmission Jammer destroyed. 13280_ System corrupted by crushing effect (+1). 13280_ Imp. Field Recycling Unit destroyed. 13280_ System corrupted by crushing effect (+3). 13282_ Identified Thermic Laser. 13284_ System corrupted: Component data lost. 13285_ Kicked Earth. 13285_ Thermic Laser broken. 13285_ Destabilizing: Short circuit. 13285_ Destabilizing: System interference. 13285_ Imp. Cooling System temporarily disabled. 13285_ Imp. Heat Sink temporarily disabled. 13287_ Kicked Earth. 13287_ Destabilizing: System corrupted (+2). 13289_ Kicked Earth. 13289_ Destabilizing: Core damaged (-42). 13307_ XACBWD2HT2H=NN0SOCBUFTCJA|=,VZLJ95 13322_ System corrupted: Component data lost. 13340_ System corrupted: Heat flow error (+208). 13357_ System corrupted: Matter fused (-10). Map ----- +----------------------------------------------------+ | ?????????????????????????????????????????????????? | | ?????????????????????????????????????????????????? | | ?????????????????????????????????????????????????? | | ?????????????????????????????????????????????????? | | ?????????????????????????????????????????????????? | | ?????????????????????????????????????????????????? | | ?????????????????????????????????????????????????? | | ?????????????????????????????????????????????????? | | ?????????????????????????????????????????????????? | | ?????????????????????????????????????????????????? | | ?????????????????????????????????????????????????? | | ?????????????????????????????????????????????????? | | ?????????????????????????????????????????????????? | | ?????????????????????????????????????????????????? | | ?????????????????????????????????????????????????? | | ?????????????????????????????????????????????????? | | ?????????????????????????????????????????????????? | | ?????????????????????????????????????????????????? | | ?????????????????????????????????????????????????? | | ?????????????????????????????????????????????????? | | ?????????????????????????????????????????????????? | | ?????????????????????????????????????????????????? | | ????????????????????????????????????????????????## | | ??????????????????????????????###???????????????# | | ???????????????????????######## ################## | | ???????????????????????# @ # # # | | ???????????????????????########### ############### | | ?????????????????????????????????###?????????????# | | ?????????????????????????????????????????????????? | | ?????????????????????????????????????????????????? | | ?????????????????????????????????????????????????? | | ?????????????????????????????????????????????????? | | ?????????????????????????????????????????????????? | | ?????????????????????????????????????????????????? | | ?????????????????????????????????????????????????? | | ?????????????????????????????????????????????????? | | ?????????????????????????????????????????????????? | | ?????????????????????????????????????????????????? | | ?????????????????????????????????????????????????? | | ?????????????????????????????????????????????????? | | ?????????????????????????????????????????????????? | | ?????????????????????????????????????????????????? | | ????????????????????????????????? ?????????????? | | ????????????????????????????????? ????????????? | | ?????????????????????????????????? ???????????? | | ??????????????????????????????????? ???????????? | | ???????????????????????????????????## ??????????? | | ???????????????????????????????????# ?????????? | | ???????????????????????????????????? ????????? | | ?????????????????????????????????????? ???????? | +----------------------------------------------------+ Best States ------------- Heat Dissipation 81 Energy Generation 19 Energy Capacity 315 Matter Stores 300 Matter Capacity 300 Sight Range 16 Terrain Scan Density 10 Jamming Range 12 Armor Coverage 600 Resistance: TH 25 Weapon Cycling 20 Evasion (%) 60 Targeting Accuracy 5 Target Analysis 5 Core Analysis 9 Recoil Reduction 4 Offensive Hacking 10 Defensive Hacking 14 Relay Coupler Types 3 Relay Coupler Value 62 Item Schematics ----------------- Huge Storage Unit | -8/Materials | Scanalyzed Lrn. Tractor Beam | -8/Materials | Scanalyzed Robot Schematics ------------------ None Fabricated ------------ Nothing Alien Tech Used ----------------- None Achievements -------------- None Challenges ------------ None Game ------ Seed SpikedAblativeMachine Manual? 0 Play Time 01:37:57 Cumulative 189.3 hours Start 2024.05.29 @ 21:54:00 End 2024.06.08 @ 16:45:38 Sessions 12 Manual Loads 0 Difficulty Rogue Special Mode None Game No. 192 Rogue 156 Adventurer 36 Explorer 0 Win Type - Total 10 Types 3/0/7/0/0/0/0/0/0 Lore% 56 Gallery% 82 Achievement% 71 Wizard Run 0 Options --------- Layout 0 ASCII 0 Keyboard 0 Movement Mouse Keybinds 0 Fullscreen 1 Font 18/SmallcapsGlow Map View 76x50 Zoom Use 0% Tactical HUD 1 Map Filters NONE Filters NONE Steam 1 RUN: d5a14867-4d04-4aed-bae3-1c7dff228394